Cogmind - Beta 12 @@@ ROGUE MODE // 2023.05.23 @ 18:44:20 Player: Mr Goldstein Result: Self-destructed Performance ------------- Evolutions (3) 1500 Regions Visited (6) 1200 Robots Destroyed (0) 0 Value Destroyed (0) 0 Prototype IDs (0) 0 Alien Tech Used (0) 0 Bonus (1534) 1534 TOTAL SCORE: 4234 Bonus ------- Pacifist 834 Entered Garrisons 200 Entered DSFs 500 Cogmind --------- Core Integrity 62/700 Matter 224/300 Energy 100/100 System Corruption 0% Temperature Cool (0) Movement Core (50) Location -7/Garrison Parts ------- > --- POWER (1) -------- (None) > --- PROPULSION (5) --- (None) > --- UTILITY (5) ------ (None) > --- WEAPON (2) ------- (None) > --- INVENTORY (5) ---- Micro Nuclear Core Xenon Bombardment Thruster Xenon Bombardment Thruster Xenon Bombardment Thruster Xenon Bombardment Thruster Peak State ------------ > --- POWER ------------ (None) > --- PROPULSION ------- Medium Treads Medium Treads Medium Treads > --- UTILITY ---------- (None) > --- WEAPON ----------- (None) > --- INVENTORY -------- Micro Nuclear Core Reaction Control System Reaction Control System Scythe [Rating: 13] Favorites ----------- Power None Propulsion Medium Treads Treads Medium Treads Utility Reaction Control System Device Reaction Control System Weapon None Build | -11 -10 -9 -8 -7 -7 -7 ------- Run | Jun Mat Mat Mat Fac DSF Gar Slots Evolved 6 | . . 2 2 2 . . Power . | . . . . . . . Propulsion 3 | . . 1 1 1 . . Utility 3 | . . 1 1 1 . . Weapon . | . . . . . . . Parts Attached 7 | . . 2 . . 5 . Power . | . . . . . . . Engine . | . . . . . . . Core . | . . . . . . . Reactor . | . . . . . . . Propulsion 3 | . . . . . 3 . Treads 3 | . . . . . 3 . Leg . | . . . . . . . Wheel . | . . . . . . . Hover . | . . . . . . . Flight . | . . . . . . . Utility 4 | . . 2 . . 2 . Device 4 | . . 2 . . 2 . Storage . | . . . . . . . Processor . | . . . . . . . Hackware . | . . . . . . . Protection . | . . . . . . . Artifact . | . . . . . . . Weapon . | . . . . . . . Energy Gun . | . . . . . . . Energy Cannon . | . . . . . . . Ballistic Gun . | . . . . . . . Ballistic Cannon . | . . . . . . . Launcher . | . . . . . . . Special Weapon . | . . . . . . . Impact Weapon . | . . . . . . . Slashing Weapon . | . . . . . . . Piercing Weapon . | . . . . . . . Special Melee Weapon . | . . . . . . . Unidentified Prototypes . | . . . . . . . Parts Lost 3 | . . 1 1 . 1 . Power . | . . . . . . . Propulsion . | . . . . . . . Utility 3 | . . 1 1 . 1 . Weapon . | . . . . . . . Highest Loss Streak 2 | . . 1 2 . 1 . To Critical Strikes . | . . . . . . . Average Slot Usage (%) 3 | . . 16 1 . 4 . Treads 1 | . . . . . 3 . Device 2 | . . 16 1 . . . Naked Turns 217 | . 43 4 54 55 48 13 Heaviest Build 2 | . . 2 1 . 2 . Greatest Support 56 | 3 3 3 3 3 56 3 Greatest Overweight (x) . | . . . . . . . Average Overweight (x) . | . . . . . . . Largest Inventory Capacity 5 | 5 5 5 5 5 5 5 Average Capacity 5 | 5 5 5 5 5 5 5 Most Carried 5 | . . 3 3 4 5 5 Average Carried 2 | . . 2 3 3 4 5 Final Capacity 5 | 5 5 5 5 5 5 5 Final Carried 5 | . . 3 3 4 5 5 Class Distribution -------------------- 100% | Mutant Dominant Class ---------------- Mutant | -10/Materials Mutant | -9/Materials Mutant | -8/Materials Mutant | -7/Factory Mutant | -7/DSF Mutant | -7/Garrison Resources | -11 -10 -9 -8 -7 -7 -7 ----------- Run | Jun Mat Mat Mat Fac DSF Gar Matter Collected 139 | 136 . . . . 3 . Remotely . | . . . . . . . Salvage Created . | . . . . . . . Parts . | . . . . . . . Haulers Intercepted . | . . . . . . . Recyclers Shooed . | . . . . . . . Parts Field Recycled . | . . . . . . . Retrieved Matter . | . . . . . . . Parts Self-Destructed . | . . . . . . . Prevented . | . . . . . . . Kills | -11 -10 -9 -8 -7 -7 -7 ------- Run | Jun Mat Mat Mat Fac DSF Gar Combat Hostiles Destroyed . | . . . . . . . Classes Destroyed . | . . . . . . . Best Kill Streak . | . . . . . . . Combat Bots Only . | . . . . . . . Max Kills in Single Turn . | . . . . . . . Gunslinging . | . . . . . . . Exploded . | . . . . . . . Melee . | . . . . . . . Uniques/NPCs Destroyed . | . . . . . . . Combat | -11 -10 -9 -8 -7 -7 -7 -------- Run | Jun Mat Mat Mat Fac DSF Gar Damage Taken 1355 | . 44 110 415 . 648 138 Core 1141 | . 44 59 400 . 500 138 Absorbed by Shields 117 | . . . . . 65 52 Core Remaining (%) 73 | 100 82 85 27 . . . Volleys Fired . | . . . . . . . Largest . | . . . . . . . Hottest . | . . . . . . . Shots Fired . | . . . . . . . Gun . | . . . . . . . Cannon . | . . . . . . . Launcher . | . . . . . . . Special . | . . . . . . . Kinetic . | . . . . . . . Thermal . | . . . . . . . Explosive . | . . . . . . . Electromagnetic . | . . . . . . . Robot Hit Streak . | . . . . . . . Robot Miss Streak . | . . . . . . . Penetration Max . | . . . . . . . Secondary Targets . | . . . . . . . Shots Hit Robots . | . . . . . . . Core Hits 1 | . . 1 . . . . Critical Kills . | . . . . . . . Critical Parts Destroyed . | . . . . . . . Critical Strikes . | . . . . . . . Melee Attacks . | . . . . . . . Impact . | . . . . . . . Slashing . | . . . . . . . Piercing . | . . . . . . . Sneak Attacks . | . . . . . . . Combat Hostiles . | . . . . . . . Follow-up Attacks . | . . . . . . . Damage Inflicted 69 | . . 47 8 . 14 . Guns . | . . . . . . . Cannons . | . . . . . . . Explosions . | . . . . . . . Melee . | . . . . . . . Ramming 69 | . . 47 8 . 14 . Kinetic . | . . . . . . . Thermal . | . . . . . . . Explosive . | . . . . . . . Electromagnetic . | . . . . . . . Impact . | . . . . . . . Slashing . | . . . . . . . Piercing . | . . . . . . . Highest Corruption 2 | . . 2 . . . . Average Corruption 2 | . . 2 . . . . Corruption Purged . | . . . . . . . Corruption Blocked . | . . . . . . . Overload Shots . | . . . . . . . Overflow Damage . | . . . . . . . Projectiles . | . . . . . . . Explosions . | . . . . . . . Melee . | . . . . . . . Knockbacks . | . . . . . . . Impact . | . . . . . . . Kinetic . | . . . . . . . Secondary . | . . . . . . . Self-Inflicted Damage 32 | . . 22 4 . 6 . Shots . | . . . . . . . Rammed 9 | . . 4 2 . 3 . Targets Rammed 9 | . . 4 2 . 3 . Kicked . | . . . . . . . Crushed . | . . . . . . . Highest Temperature . | . . . . . . . Average Temperature . | . . . . . . . Received Heat Transfer 321 | . 12 24 261 . 24 . Siege Activations . | . . . . . . . Robots Corrupted . | . . . . . . . Combat Hostiles . | . . . . . . . Parts Fried . | . . . . . . . Impact Corruptions . | . . . . . . . Robots Melted . | . . . . . . . Combat Hostiles . | . . . . . . . Parts Melted . | . . . . . . . Heat Transferred . | . . . . . . . Parts Sabotaged . | . . . . . . . Parts Stolen . | . . . . . . . Parts Stripped . | . . . . . . . Power Chain Reactions . | . . . . . . . Missiles Intercepted . | . . . . . . . Alert | -11 -10 -9 -8 -7 -7 -7 ------- Run | Jun Mat Mat Mat Fac DSF Gar Peak Influence 110 | . 45 38 110 49 52 31 Initial 49 | . . 18 15 49 37 31 Average 39 | . 33 26 48 49 43 31 Maximum Alert Level . | . . . . . . . Low Security (%) 100 | 100 100 100 100 100 100 100 Level 1 . | . . . . . . . Level 2 . | . . . . . . . Level 3 . | . . . . . . . Level 4 . | . . . . . . . Level 5 . | . . . . . . . High Security . | . . . . . . . Max Security . | . . . . . . . Squads Dispatched 4 | . 1 . 2 . 1 . Investigation 1 | . 1 . . . . . Extermination . | . . . . . . . Reinforcement 3 | . . . 2 . 1 . Assault . | . . . . . . . Garrison . | . . . . . . . Intercept . | . . . . . . . Searches Triggered . | . . . . . . . Construction Impeded . | . . . . . . . Haulers Reinforced . | . . . . . . . Active Scanning Responses . | . . . . . . . Cargo Convoy Interrupts . | . . . . . . . Stealth | -11 -10 -9 -8 -7 -7 -7 --------- Run | Jun Mat Mat Mat Fac DSF Gar Distress Signals 2 | . . . 2 . . . Communications Jammed . | . . . . . . . Distress Signals . | . . . . . . . Times Spotted 38 | . 6 4 18 . 6 4 Peak Tracking Total 21 | . 7 4 21 . 5 4 Tactical Retreats 2 | . . . 1 . 1 . Traps | -11 -10 -9 -8 -7 -7 -7 ------- Run | Jun Mat Mat Mat Fac DSF Gar Traps Triggered 4 | . 1 . . . 2 1 Indirectly . | . . . . . . . Trap Hack Attempts . | . . . . . . . Triggered . | . . . . . . . Disarmed . | . . . . . . . Reprogrammed . | . . . . . . . Reused . | . . . . . . . Traps Extracted . | . . . . . . . Installed . | . . . . . . . Triggered . | . . . . . . . Machines | -11 -10 -9 -8 -7 -7 -7 ---------- Run | Jun Mat Mat Mat Fac DSF Gar Machines Disabled . | . . . . . . . Max in Single Turn . | . . . . . . . Machines Repaired . | . . . . . . . Machines Sabotaged . | . . . . . . . Overloaded Fab Kills . | . . . . . . . Hacking | -11 -10 -9 -8 -7 -7 -7 --------- Run | Jun Mat Mat Mat Fac DSF Gar Machines Accessed 1 | . . . . 1 . . Terminals 1 | . . . . 1 . . Fabricators . | . . . . . . . Repair Stations . | . . . . . . . Recycling Units . | . . . . . . . Scanalyzers . | . . . . . . . Garrison Access . | . . . . . . . Total Hacks 1 | . . . . 1 . . Successful 1 | . . . . 1 . . Failed . | . . . . . . . Catastrophic . | . . . . . . . Database Lockouts . | . . . . . . . Manual . | . . . . . . . Terminals 1 | . . . . 1 . . Fabricators . | . . . . . . . Repair Stations . | . . . . . . . Recycling Units . | . . . . . . . Scanalyzers . | . . . . . . . Garrison Access . | . . . . . . . Terminal Hacks 1 | . . . . 1 . . Open DSF 1 | . . . . 1 . . Fabricator Hacks . | . . . . . . . Repair Station Hacks . | . . . . . . . Recycling Unit Hacks . | . . . . . . . Scanalyzer . | . . . . . . . Garrison Access Hacks . | . . . . . . . Unauthorized Hacks . | . . . . . . . Terminals . | . . . . . . . Fabricators . | . . . . . . . Repair Stations . | . . . . . . . Recycling Units . | . . . . . . . Scanalyzers . | . . . . . . . Garrison Access . | . . . . . . . Data Cores Recovered . | . . . . . . . Used . | . . . . . . . Hacking Detections . | . . . . . . . Full Trace Events . | . . . . . . . Feedback Events . | . . . . . . . Feedback Blocked . | . . . . . . . Robot Schematics Acquired . | . . . . . . . Robots Built . | . . . . . . . Authchips . | . . . . . . . Time . | . . . . . . . Total Robot Build Rating . | . . . . . . . Part Schematics Acquired . | . . . . . . . Parts Built . | . . . . . . . Authchips . | . . . . . . . Time . | . . . . . . . Total Part Build Rating . | . . . . . . . Parts Repaired . | . . . . . . . Time . | . . . . . . . Parts Recycled . | . . . . . . . Recycled Matter . | . . . . . . . Retrieved Matter . | . . . . . . . Retrieved Components . | . . . . . . . Parts Scanalyzed . | . . . . . . . Part Schematics Acquired . | . . . . . . . Parts Damaged . | . . . . . . . Bothacking | -11 -10 -9 -8 -7 -7 -7 ------------ Run | Jun Mat Mat Mat Fac DSF Gar Used RIF Installer . | . . . . . . . Robots Hacked . | . . . . . . . Non-combat . | . . . . . . . Combat . | . . . . . . . Robot Hacks Applied . | . . . . . . . Relay Couplers Released . | . . . . . . . Fabnet Peak Effective % . | . . . . . . . Robots Rewired . | . . . . . . . Allies Hacked . | . . . . . . . Hacks Repelled . | . . . . . . . Allies | -11 -10 -9 -8 -7 -7 -7 -------- Run | Jun Mat Mat Mat Fac DSF Gar Total Allies . | . . . . . . . Largest Group . | . . . . . . . Highest-Rated Group . | . . . . . . . Highest-Rated Ally . | . . . . . . . Total Orders . | . . . . . . . Ally Attacks . | . . . . . . . Total Damage . | . . . . . . . Kills . | . . . . . . . Allies Corrupted . | . . . . . . . Allies Melted . | . . . . . . . Intel | -11 -10 -9 -8 -7 -7 -7 ------- Run | Jun Mat Mat Mat Fac DSF Gar Robot Analysis Total . | . . . . . . . Derelict Logs Recovered . | . . . . . . . Drone Launches . | . . . . . . . Drone Recoveries . | . . . . . . . Exploration | -11 -10 -9 -8 -7 -7 -7 ------------- Run | Jun Mat Mat Mat Fac DSF Gar Turns Passed 304 | 11 43 44 59 55 79 13 Spaces Moved 493 | 23 85 67 113 107 87 11 Core 491 | 23 85 67 113 107 85 11 Treads 2 | . . . . . 2 . Legs . | . . . . . . . Wheels . | . . . . . . . Hover . | . . . . . . . Flight . | . . . . . . . Fastest Speed 50 | 50 50 50 50 50 50 50 Average Speed 50 | 50 50 50 50 50 52 50 Slowest Speed 160 | 50 50 50 50 50 160 50 Overloaded Moves . | . . . . . . . Propulsion Burnouts . | . . . . . . . Robots Hopped . | . . . . . . . Cave-ins Triggered . | . . . . . . . Exploration Rate (%) 21 | 3 23 10 21 6 85 4 Regions Visited 6 Branch Regions . Pre-discovered Areas . | . . . . . . . Known Exits Taken 1 | . . . . 1 . . Unknown Exits Taken 4 | 1 1 1 1 . . . Scrap Searched . | . . . . . . . Spaces Dug . | . . . . . . . Terrain Destroyed . | . . . . . . . Melee . | . . . . . . . Projectile . | . . . . . . . AOE . | . . . . . . . Terrain Rammed . | . . . . . . . Walls Destroyed . | . . . . . . . Machines Disabled . | . . . . . . . Actions | -11 -10 -9 -8 -7 -7 -7 --------- Run | Jun Mat Mat Mat Fac DSF Gar Total 540 | 22 84 75 114 107 120 18 Wait . | . . . . . . . Move 487 | 22 84 66 112 106 86 11 Hop . | . . . . . . . Pick Up 9 | . . 3 . 1 5 . Fast Attach 5 | . . 2 . . 3 . Attach 2 | . . . . . 2 . Detach . | . . . . . . . Swap . | . . . . . . . Drop 2 | . . . . . 2 . Fire . | . . . . . . . Melee . | . . . . . . . Ram 9 | . . 4 2 . 3 . Kick . | . . . . . . . Crush . | . . . . . . . Escape Stasis 26 | . . . . . 19 7 Rewire . | . . . . . . . Trap . | . . . . . . . Miscellaneous . | . . . . . . . Route ------- -11/Junkyard -10/Materials -9/Materials -8/Materials (discovered 2 exits: *Fac / [*Sto]) -7/Factory -7/DSF -7/Garrison History --------- Turn | Location | Event 4 | -11/Junkyard | Discovered new exit (range 15) 12 | -11/Junkyard | Entered Materials 49 | -10/Materials | Discovered new exit (range 10) 55 | -10/Materials | Entered another Materials area 55 | -9/Materials | Evolved 2 slots: Propulsion x1, Utility x1 97 | -9/Materials | Discovered new exit (range 5) 99 | -9/Materials | Entered another Materials area 99 | -8/Materials | Evolved 2 slots: Propulsion x1, Utility x1 137 | -8/Materials | Discovered new exit (range 15) 150 | -8/Materials | Discovered new exit (range 15) 152 | -8/Materials | Core integrity fell below 50% 158 | -8/Materials | Entered Factory 158 | -7/Factory | Evolved 2 slots: Propulsion x1, Utility x1 213 | -7/Factory | Identified exit to DSF 213 | -7/Factory | Entered DSF 237 | -7/DSF | Additional patrols routed to DSF 256 | -7/DSF | Discovered new exit (range 16) 274 | -7/DSF | Core integrity fell below 50% 292 | -7/DSF | Entered Garrison 298 | -7/Garrison | Triggered checkpoint 302 | -7/Garrison | Core integrity fell below 20% 305 | -7/Garrison | Self-destructed Last Messages --------------- 00287_ Penetrated by Slug. 00287_ Field strength at 14. 00288_ Field strength at 8. 00289_ Stasis field depleted. LOCATION=UNKNOWN GOAL=ESCAPE 00297_ Triggered Stasis Trap. 00297_ A bubble of rippling energy engulfs the area. 00297_ Field strength at 94. 00298_ Beams of light sweep through the air. An alarm sounds. 00298_ C-30 ARC bursts open, deploying its payload. 00298_ S-27 Virus unfolds itself. 00298_ Field strength at 84. 00299_ Field strength at 78. 00300_ Field strength at 55. 00301_ Field strength at 49. 00302_ Field strength at 34. 00303_ Field strength at 17. 00304_ Field strength at 11. 00305_ Stasis field depleted. Map ----- +----------------------------------------------------+ | | | | | | | | | | | | | | | | | | | | | | | | | | | | | ??????????????????????????????????????????????? | | ??????????????????????????????????????????????? | | ??????????????????????????????????????????????? | | ??????????????????????????????????????????????? | | ??????????????????????????????????????????????? | | ??????????????????????????????????????????????? | | ??????????????????????????????????????????????? | | ??????????????????????????????????????????????? | | ??????????????????????????????????????????????? | | ??????????????????????????????????????????????? | | ?????????????????????################?????????? | | ?????????????????????# @ #???????? | | ?????????????????????# ss #???????? | | ?????????????????????# ###ss ###### #???????? | | ?????????????????????# #??C%C#???????????????? | | ?????????????????????# #???###???????????????? | | ?????????????????????# #?????????????????????? | | ?????????????????????# #?????????????????????? | | ?????????????????????# #?????????????????????? | | ?????????????????????# #?????????????????????? | | ???????????????????### #?????????????????????? | | ???????????????????# #?????????????????????? | | ???????????????????# #?????????????????????? | | ???????????????????# #?????????????????????? | | ???????????????????### #?????????????????????? | | ?????????????????????# #?????????????????????? | | ?????????????????????# #?????????????????????? | | ?????????????????????# #?????????????????????? | | ?????????????????????# #?????????????????????? | | ?????????????????????# #?????????????????????? | | ?????????????????????# #?????????????????????? | | ?????????????????????# #?????????????????????? | | ?????????????????????# #?????????????????????? | | ?????????????????????? #?????????????????????? | | ?????????????????????? ??????????????????????? | | ??????????????????????##??????????????????????? | +----------------------------------------------------+ Best States ------------- Heat Dissipation 34 Energy Generation 5 Energy Capacity 100 Matter Stores 255 Matter Capacity 300 Sight Range 16 Terrain Scan Density 10 Evasion (%) 58 Item Schematics ----------------- None Robot Schematics ------------------ None Fabricated ------------ Nothing Alien Tech Used ----------------- None Achievements -------------- None Challenges ------------ None Game ------ Seed particleneutrinoderivative Manual? 1 Play Time 00:03:34 Cumulative 235.6 hours Start 2023.05.23 @ 18:40:56 End 2023.05.23 @ 18:44:20 Sessions 1 Manual Loads 0 Difficulty Rogue Special Mode None Game No. 705 Rogue 705 Adventurer 0 Explorer 0 Win Type - Total 10 Types 8/0/1/1/0/0/0/0/0 Lore% 83 Gallery% 82 Achievement% 73 Wizard Run 0 Options --------- ASCII 0 Keyboard 0 Movement Numpad Keybinds 0 Fullscreen 1 Font 16/SmallcapsGlow Map View 75x55 Tactical HUD 1 Map Filters NONE Filters NONE Steam 1 RUN: 4615f2cd-abb2-4c0e-9e13-cb57c22c5683